[Event "USA-ch Junior Girls 2019"]
[Site "Saint Louis"]
[Date "2019.07.11"]
[Round "1.2"]
[White "Li, Rachael"]
[Black "Bykovtsev, Agata"]
[Result "0-1"]
[ECO "A00"]
[WhiteElo "1736"]
[BlackElo "2012"]
[Annotator "NA"]
[PlyCount "80"]
[EventDate "2019.07.09"]
[EventType "tourn"]
[EventCountry "USA"]
[SourceTitle "playchess.com"]
[Source "ChessBase"]
[SourceQuality "1"]
[TimeControl "40/5400+30:1800+30"]

1. a3 {[%emt 0:00:00]} Nf6 {[%emt 0:00:00]} 2. Nf3 {[%emt 0:00:00]} d6 {[%emt 0:01:21]} 3. d4 {[%emt 0:00:00]} g6 {[%emt 0:00:33]} 4. c4 {[%emt 0:00:47]} Bg7 {[%emt 0:00:17]} 5. Nc3 {[%emt 0:00:14]} O-O {[%emt 0:00:49]} 6. e3 {[%emt 0:01:29]} Nbd7 {[%emt 0:10:11]} 7. Bd3 e5 {[%emt 0:01:21]} 8. O-O {[%emt 0:01:59]} Nh5 {[%emt 0:03:53]} 9. dxe5 {[%emt 0:06:52]} dxe5 {[%emt 0:00:35]} 10. e4 {[%emt 0:02:42]} Nc5 {[%emt 0:06:11]} 11. Bc2 {[%emt 0:00:54]} Ne6 {[%emt 0:04:51]} 12. Qxd8 {[%emt 0:04:55]} Rxd8 {[%emt 0:00:02]} 13. Be3 {[%emt 0:00:37]} Nd4 {[%emt 0:04:51]} 14. Bxd4 {[%emt 0:07:31]} exd4 {[%emt 0:01:01]} 15. Nd5 {[%emt 0:00:09]} d3 {[%emt 0:17:36]} 16. Nxc7 {[%emt 0:16:21]} dxc2 {[%emt 0:03:18]} 17. Nxa8 {[%emt 0:00:16]} Bxb2 {[%emt 0:00:42]} 18. Rae1 {[%emt 0:00:45]} Be6 {[%emt 0:12:52]} 19. Re2 {[%emt 0:11:47]} c1=Q {[%emt 0:01:48]} 20. Rxc1 {[%emt 0:00:10]} Bxc1 {[%emt 0:00:03]} 21. Re1 {[%emt 0:00:27]} Bf4 {[%emt 0:00:56]} 22. g3 {[%emt 0:00:40]} Rxa8 {[%emt 0:08:37]} 23. gxf4 {[%emt 0:00:36]} Nxf4 {[%emt 0:00:04]} 24. c5 {[%emt 0:00:27]} Rc8 {[%emt 0:00:24]} 25. Nd4 {[%emt 0:00:28]} Bc4 {[%emt 0:01:54]} 26. c6 {[%emt 0:00:53]} bxc6 {[%emt 0:00:13]} 27. e5 {[%emt 0:00:39]} c5 {[%emt 0:00:27]} 28. Nf3 {[%emt 0:00:19]} Bd5 {[%emt 0:00:24]} 29. Nd2 {[%emt 0:00:28]} c4 {[%emt 0:00:13]} 30. Nb1 {[%emt 0:00:48]} c3 {[%emt 0:00:36]} 31. Nxc3 {[%emt 0:00:29]} Rxc3 {[%emt 0:00:04]} 32. h4 {[%emt 0:00:15]} Rh3 {[%emt 0:00:29]} 33. f3 {[%emt 0:00:05]} Rg3+ {[%emt 0:00:27]} 34. Kf2 {[%emt 0:00:09]} Rxf3+ {[%emt 0:00:10]} 35. Kg1 {[%emt 0:00:05]} Rxa3 {[%emt 0:00:27]} 36. Rb1 {[%emt 0:00:05]} Ra2 {[%emt 0:00:58]} 37. Kf1 {[%emt 0:00:22]} Bc4+ {[%emt 0:00:30]} 38. Ke1 {[%emt 0:00:08]} Ng2+ {[%emt 0:00:11]} 39. Kd1 {[%emt 0:00:09]} Ne3+ {[%emt 0:00:04]} 40. Kc1 {[%emt 0:00:00]} Rc2# {[%emt 0:00:00]} 0-1

[Event "USA-ch Junior Girls 2019"]
[Site "Saint Louis"]
[Date "2019.07.11"]
[Round "1.3"]
[White "Yip, Carissa"]
[Black "Zilajeva, Veronika"]
[Result "1-0"]
[ECO "C06"]
[WhiteElo "2285"]
[BlackElo "1855"]
[Annotator "ChessBase"]
[PlyCount "103"]
[EventDate "2019.07.09"]
[EventType "tourn"]
[EventCountry "USA"]
[SourceTitle "playchess.com"]
[Source "ChessBase"]
[SourceQuality "1"]
[TimeControl "40/5400+30:1800+30"]

1. e4 {[%emt 0:00:00]} e6 {[%emt 0:00:00]} 2. d4 {[%emt 0:00:00]} d5 {[%emt 0:00:00]} 3. Nd2 {[%emt 0:00:00]} Nf6 {[%emt 0:00:00]} 4. e5 {[%emt 0:00:17]} Nfd7 {[%emt 0:00:00]} 5. Bd3 {[%emt 0:00:28]} c5 {[%emt 0:00:09]} 6. c3 {[%emt 0:00:05]} Nc6 {[%emt 0:00:10]} 7. Ne2 {[%emt 0:00:11]} cxd4 {[%emt 0:00:30]} 8. cxd4 {[%emt 0:00:05]} f6 {[%emt 0:00:15]} 9. exf6 {[%emt 0:00:05]} Nxf6 {[%emt 0:00:04]} 10. O-O {[%emt 0:00:07]} Bd6 {[%emt 0:00:25]} 11. Nf3 {[%emt 0:00:05]} O-O {[%emt 0:00:15]} 12. Re1 {[%emt 0:06:46]} Bd7 {[%emt 0:03:20]} 13. Bf4 {[%emt 0:01:08]} Ne4 {[%emt 0:05:38]} 14. Bxd6 {[%emt 0:11:32]} Nxd6 {[%emt 0:00:15]} 15. Ng3 {[%emt 0:00:04]} Qf6 {[%emt 0:21:49]} 16. Qc2 {[%emt 0:08:54]} g6 {[%emt 0:03:11]} 17. Rad1 {[%emt 0:05:31]} Rac8 {[%emt 0:07:54]} 18. Qe2 {[%emt 0:01:26]} Nf5 {[%emt 0:09:25]} 19. Nxf5 {[%emt 0:06:08]} gxf5 {[%emt 0:01:16]} 20. Bb5 {[%emt 0:00:54]} Qg7 {[%emt 0:07:16]} 21. Bxc6 {[%emt 0:00:38]} bxc6 {[%emt 0:00:22]} 22. Rc1 {[%emt 0:01:39]} Kh8 {[%emt 0:04:05]} 23. Ne5 {[%emt 0:02:47]} Be8 {[%emt 0:01:55]} 24. f4 {[%emt 0:01:04]} Rg8 {[%emt 0:02:23]} 25. Rc3 {[%emt 0:02:13]} Qe7 {[%emt 0:03:33]} 26. Rec1 {[%emt 0:02:46]} Qb7 {[%emt 0:03:54]} 27. Qf2 {[%emt 0:03:26]} Rg7 {[%emt 0:01:39]} 28. b3 {[%emt 0:01:30]} Qb6 {[%emt 0:02:02]} 29. Rd3 {[%emt 0:07:56]} Qa6 {[%emt 0:02:40]} 30. a4 {[%emt 0:04:56]} Qb7 {[%emt 0:03:01]} 31. Rc5 {[%emt 0:05:11]} Qb4 {[%emt 0:02:13]} 32. Rdc3 {[%emt 0:02:07]} Qa3 {[%emt 0:01:09]} 33. h3 {[%emt 0:02:45]} Rb8 {[%emt 0:01:08]} 34. Qf3 {[%emt 0:05:46]} Qb4 {[%emt 0:03:29]} 35. Qe3 {[%emt 0:00:07]} Qa3 {[%emt 0:01:18]} 36. Kh2 {[%emt 0:03:17]} Qb2 {[%emt 0:00:48]} 37. Qf3 {[%emt 0:02:24]} Bh5 {[%emt 0:01:14]} 38. Qf1 {[%emt 0:00:03]} Rxb3 {[%emt 0:01:47]} 39. Rxb3 {[%emt 0:01:59]} Qxb3 {[%emt 0:00:05]} 40. Rxc6 {[%emt 0:00:00]} Re7 {[%emt 0:00:00]} 41. Qf2 {[%emt 0:01:04]} Be8 {[%emt 0:08:27]} 42. Qh4 {[%emt 0:01:40]} Rg7 {[%emt 0:01:24]} 43. Rc8 {[%emt 0:00:34]} Qxa4 {[%emt 0:01:04]} 44. Qf6 {[%emt 0:01:50]} Kg8 {[%emt 0:03:11]} 45. Qxe6+ {[%emt 0:00:24]} Kf8 {[%emt 0:00:08]} 46. Qxf5+ {[%emt 0:00:08]} Kg8 {[%emt 0:00:30]} 47. Qe6+ {[%emt 0:00:21]} Kf8 {[%emt 0:00:19]} 48. Qd6+ {[%emt 0:00:10]} Kg8 {[%emt 0:00:29]} 49. Qxd5+ {[%emt 0:00:07]} Kf8 {[%emt 0:00:09]} 50. Qd6+ {[%emt 0:00:19]} Kg8 {[%emt 0:00:07]} 51. Ng4 {[%emt 0:00:30]} Qb5 {[%emt 0:03:10]} 52. Nh6+ {[%emt 0:00:06]} 1-0

[Event "USA-ch Junior Girls 2019"]
[Site "Saint Louis"]
[Date "2019.07.11"]
[Round "1.4"]
[White "Wu, Rochelle"]
[Black "Nguyen, Emily"]
[Result "1-0"]
[ECO "D10"]
[WhiteElo "2085"]
[BlackElo "2102"]
[Annotator "ChessBase"]
[PlyCount "115"]
[EventDate "2019.07.09"]
[EventType "tourn"]
[EventCountry "USA"]
[SourceTitle "playchess.com"]
[Source "ChessBase"]
[SourceQuality "1"]
[TimeControl "40/5400+30:1800+30"]

1. d4 {[%emt 0:00:00]} d5 {[%emt 0:00:00]} 2. c4 {[%emt 0:00:00]} c6 {[%emt 0:00:00]} 3. Nc3 {[%emt 0:00:00]} Nf6 {[%emt 0:00:00]} 4. cxd5 {[%emt 0:00:25]} cxd5 {[%emt 0:00:00]} 5. Bf4 {[%emt 0:00:11]} Qb6 {[%emt 0:04:45]} 6. Qb3 {[%emt 0:20:16]} Qxd4 {[%emt 0:27:35]} 7. Nb5 {[%emt 0:10:53]} Qxf4 {[%emt 0:00:07]} 8. e3 {[%emt 0:00:05]} Qe4 {[%emt 0:00:15]} 9. Nc7+ {[%emt 0:01:34]} Kd8 {[%emt 0:00:42]} 10. Nxa8 {[%emt 0:11:13]} e6 {[%emt 0:08:24]} 11. a3 {[%emt 0:07:22]} Nc6 {[%emt 0:03:18]} 12. Rc1 {[%emt 0:05:44]} Bd6 {[%emt 0:04:13]} 13. Nf3 {[%emt 0:09:20]} Ke7 {[%emt 0:05:54]} 14. Bd3 {[%emt 0:05:18]} Qg4 {[%emt 0:00:06]} 15. O-O {[%emt 0:00:51]} Bd7 {[%emt 0:11:19]} 16. Qxb7 {[%emt 0:00:27]} Rb8 {[%emt 0:00:04]} 17. Qa6 {[%emt 0:00:08]} Rxa8 {[%emt 0:00:42]} 18. Rxc6 {[%emt 0:00:11]} Bxc6 {[%emt 0:00:03]} 19. Qxc6 {[%emt 0:00:08]} Rb8 {[%emt 0:00:09]} 20. h3 {[%emt 0:01:11]} Qh5 {[%emt 0:00:06]} 21. b4 {[%emt 0:04:57]} g5 {[%emt 0:11:55]} 22. Rc1 {[%emt 0:10:48]} g4 {[%emt 0:00:44]} 23. hxg4 {[%emt 0:00:04]} Qxg4 {[%emt 0:00:59]} 24. Qa6 {[%emt 0:02:37]} Rg8 {[%emt 0:02:27]} 25. Qxa7+ {[%emt 0:00:05]} Nd7 {[%emt 0:00:06]} 26. Ne1 {[%emt 0:00:10]} h5 {[%emt 0:03:22]} 27. Bb5 {[%emt 0:00:22]} Rd8 {[%emt 0:00:07]} 28. Rc8 {[%emt 0:03:16]} e5 {[%emt 0:04:09]} 29. Rxd8 {[%emt 0:00:05]} Kxd8 {[%emt 0:00:05]} 30. Qa8+ {[%emt 0:00:06]} Ke7 {[%emt 0:00:04]} 31. Qxd5 {[%emt 0:00:09]} Nf6 {[%emt 0:00:20]} 32. Qb7+ {[%emt 0:02:05]} Kf8 {[%emt 0:00:06]} 33. Qa8+ {[%emt 0:00:58]} Ke7 {[%emt 0:01:33]} 34. Qb7+ {[%emt 0:00:16]} Kf8 {[%emt 0:00:05]} 35. Qf3 {[%emt 0:00:37]} Ne4 {[%emt 0:00:40]} 36. Qxg4 {[%emt 0:02:10]} hxg4 {[%emt 0:00:05]} 37. Nc2 {[%emt 0:00:11]} Ke7 {[%emt 0:00:57]} 38. Bc6 {[%emt 0:00:27]} Nc3 {[%emt 0:00:59]} 39. Kf1 {[%emt 0:00:38]} Kd8 {[%emt 0:01:53]} 40. Ke1 {[%emt 0:00:00]} Kc7 {[%emt 0:00:00]} 41. Be8 {[%emt 0:03:00]} f5 {[%emt 0:02:38]} 42. Kd2 {[%emt 0:01:37]} Ne4+ {[%emt 0:01:18]} 43. Ke2 {[%emt 0:00:06]} g3 {[%emt 0:02:26]} 44. f3 {[%emt 0:02:03]} Ng5 {[%emt 0:03:00]} 45. a4 {[%emt 0:03:26]} Kb6 {[%emt 0:00:43]} 46. Bg6 {[%emt 0:00:52]} f4 {[%emt 0:00:17]} 47. exf4 {[%emt 0:01:22]} exf4 {[%emt 0:00:06]} 48. Bd3 {[%emt 0:01:15]} Be5 {[%emt 0:00:45]} 49. Bc4 {[%emt 0:00:39]} Kc6 {[%emt 0:05:50]} 50. Ne1 {[%emt 0:02:16]} Bd4 {[%emt 0:07:02]} 51. Nd3 {[%emt 0:00:40]} Be3 {[%emt 0:00:04]} 52. a5 {[%emt 0:00:43]} Nh7 {[%emt 0:00:33]} 53. b5+ {[%emt 0:01:09]} Kb7 {[%emt 0:00:57]} 54. Bd5+ {[%emt 0:00:07]} Kb8 {[%emt 0:00:49]} 55. b6 {[%emt 0:00:33]} Nf8 {[%emt 0:00:04]} 56. Nb4 {[%emt 0:00:45]} Nd7 {[%emt 0:00:05]} 57. Na6+ {[%emt 0:00:40]} Kc8 {[%emt 0:00:08]} 58. b7+ {[%emt 0:00:07]} 1-0

[Event "USA-ch Junior Girls 2019"]
[Site "Saint Louis"]
[Date "2019.07.11"]
[Round "1.5"]
[White "Samadashvili, Martha"]
[Black "Feng, Maggie"]
[Result "1/2-1/2"]
[ECO "C15"]
[WhiteElo "2124"]
[BlackElo "2198"]
[Annotator "ChessBase"]
[PlyCount "136"]
[EventDate "2019.07.09"]
[EventType "tourn"]
[EventCountry "USA"]
[SourceTitle "playchess.com"]
[Source "ChessBase"]
[SourceQuality "1"]
[TimeControl "40/5400+30:1800+30"]

1. e4 {[%emt 0:00:00]} e6 {[%emt 0:00:00]} 2. d4 {[%emt 0:00:00]} d5 {[%emt 0:00:00]} 3. Nc3 {[%emt 0:00:00]} Bb4 {[%emt 0:00:39]} 4. exd5 {[%emt 0:00:00]} exd5 {[%emt 0:00:10]} 5. Bd3 {[%emt 0:00:07]} Nc6 {[%emt 0:01:02]} 6. a3 {[%emt 0:00:47]} Bxc3+ {[%emt 0:00:40]} 7. bxc3 {[%emt 0:00:06]} Nge7 {[%emt 0:00:34]} 8. Qf3 {[%emt 0:01:02]} Be6 {[%emt 0:03:18]} 9. Rb1 {[%emt 0:01:12]} b6 {[%emt 0:01:13]} 10. Ne2 {[%emt 0:00:34]} Qd7 {[%emt 0:07:11]} 11. O-O {[%emt 0:05:29]} O-O-O {[%emt 0:11:28]} 12. a4 {[%emt 0:16:05]} Bf5 {[%emt 0:09:54]} 13. Ng3 {[%emt 0:10:33]} Bxd3 {[%emt 0:03:46]} 14. cxd3 {[%emt 0:01:13]} f6 {[%emt 0:07:43]} 15. Ba3 {[%emt 0:07:14]} h5 {[%emt 0:14:08]} 16. Bxe7 {[%emt 0:12:00]} Qxe7 {[%emt 0:04:38]} 17. Nxh5 {[%emt 0:10:42]} Qf7 {[%emt 0:05:16]} 18. Ng3 {[%emt 0:02:08]} g6 {[%emt 0:02:52]} 19. Rfe1 {[%emt 0:00:49]} f5 {[%emt 0:02:12]} 20. Re2 {[%emt 0:06:40]} Qh7 {[%emt 0:03:00]} 21. Nf1 {[%emt 0:02:07]} g5 {[%emt 0:01:36]} 22. Rbe1 {[%emt 0:02:01]} f4 {[%emt 0:03:10]} 23. Re6 {[%emt 0:05:42]} Kb7 {[%emt 0:00:16]} 24. a5 {[%emt 0:06:23]} Nxa5 {[%emt 0:04:00]} 25. R1e5 {[%emt 0:01:31]} Qd7 {[%emt 0:12:34]} 26. Re7 {[%emt 0:02:05]} Qd6 {[%emt 0:00:28]} 27. R7e6 {[%emt 0:02:29]} Qd7 {[%emt 0:00:01]} 28. Re1 {[%emt 0:01:32]} Nc6 {[%emt 0:00:30]} 29. h3 {[%emt 0:02:07]} Rdg8 {[%emt 0:00:27]} 30. Nh2 {[%emt 0:00:17]} Re8 {[%emt 0:00:36]} 31. R6e2 {[%emt 0:00:53]} Rxe2 {[%emt 0:00:16]} 32. Qxe2 {[%emt 0:00:07]} Rh7 {[%emt 0:00:30]} 33. Ng4 {[%emt 0:01:05]} Re7 {[%emt 0:00:08]} 34. Qd1 {[%emt 0:00:45]} a5 {[%emt 0:00:38]} 35. Rxe7 {[%emt 0:00:38]} Qxe7 {[%emt 0:00:03]} 36. Qb3 {[%emt 0:00:39]} Qe1+ {[%emt 0:00:43]} 37. Kh2 {[%emt 0:00:03]} Qe6 {[%emt 0:00:48]} 38. Kg1 {[%emt 0:00:39]} Ka6 {[%emt 0:00:25]} 39. Kf1 {[%emt 0:00:52]} b5 {[%emt 0:01:11]} 40. Nh2 {[%emt 0:00:00]} Qf5 {[%emt 0:00:00]} 41. Ke2 {[%emt 0:03:10]} Qe6+ {[%emt 0:07:14]} 42. Kd1 {[%emt 0:02:49]} a4 {[%emt 0:07:57]} 43. Qa3 {[%emt 0:06:28]} Na5 {[%emt 0:00:46]} 44. Nf3 {[%emt 0:05:00]} g4 {[%emt 0:03:12]} 45. hxg4 {[%emt 0:02:35]} Qxg4 {[%emt 0:00:37]} 46. Qc5 {[%emt 0:02:25]} Qxg2 {[%emt 0:00:32]} 47. Ke2 {[%emt 0:01:02]} Qg7 {[%emt 0:05:50]} 48. Ne5 {[%emt 0:03:07]} f3+ {[%emt 0:02:38]} 49. Nxf3 {[%emt 0:04:45]} Qf7 {[%emt 0:01:49]} 50. Ne5 {[%emt 0:02:03]} Qh5+ {[%emt 0:00:07]} 51. Ke1 {[%emt 0:00:22]} Qh1+ {[%emt 0:00:07]} 52. Ke2 {[%emt 0:00:03]} Qh5+ {[%emt 0:00:05]} 53. Ke3 {[%emt 0:00:59]} Qh6+ {[%emt 0:02:44]} 54. f4 {[%emt 0:00:52]} Qh3+ {[%emt 0:00:08]} 55. Nf3 {[%emt 0:00:33]} Qe6+ {[%emt 0:00:04]} 56. Kf2 {[%emt 0:00:31]} Qf7 {[%emt 0:00:18]} 57. Ke2 {[%emt 0:01:07]} Qxf4 {[%emt 0:01:55]} 58. Qxd5 {[%emt 0:00:50]} c6 {[%emt 0:03:25]} 59. Qc5 {[%emt 0:00:11]} Qc7 {[%emt 0:00:35]} 60. Ne5 Kb7 {[%emt 0:00:07]} 61. Kd1 {[%emt 0:01:47]} Nb3 {[%emt 0:00:11]} 62. Qb4 {[%emt 0:00:38]} Qg7 {[%emt 0:00:22]} 63. Ke2 {[%emt 0:00:22]} Qg2+ {[%emt 0:01:00]} 64. Ke3 {[%emt 0:00:07]} Qg5+ {[%emt 0:00:31]} 65. Kf2 {[%emt 0:00:40]} Qf4+ {[%emt 0:00:43]} 66. Kg2 {[%emt 0:00:05]} Qg5+ {[%emt 0:00:22]} 67. Kf2 {[%emt 0:00:08]} Qf4+ {[%emt 0:00:18]} 68. Kg2 {[%emt 0:00:19]} Qg5+ 1/2-1/2

[Event "USA-ch Junior Girls 2019"]
[Site "Saint Louis"]
[Date "2019.07.12"]
[Round "2.1"]
[White "Cervantes Landeiro, Thalia"]
[Black "Feng, Maggie"]
[Result "0-1"]
[ECO "A40"]
[WhiteElo "2147"]
[BlackElo "2198"]
[Annotator "ChessBase"]
[PlyCount "96"]
[EventDate "2019.07.09"]
[EventType "tourn"]
[EventCountry "USA"]
[SourceTitle "playchess.com"]
[Source "ChessBase"]
[SourceQuality "1"]
[TimeControl "40/5400+30:1800+30"]

1. d4 {[%emt 0:00:00]} e6 {[%emt 0:00:00]} 2. c4 {[%emt 0:00:00]} f5 {[%emt 0:00:26]} 3. Nf3 {[%emt 0:00:00]} Nf6 {[%emt 0:00:12]} 4. g3 {[%emt 0:00:14]} d5 {[%emt 0:01:38]} 5. Bg2 {[%emt 0:01:04]} c6 {[%emt 0:00:21]} 6. O-O {[%emt 0:00:33]} Bd6 {[%emt 0:00:15]} 7. b3 {[%emt 0:00:17]} Qe7 {[%emt 0:00:16]} 8. Bb2 {[%emt 0:01:35]} b6 {[%emt 0:00:21]} 9. Qc1 {[%emt 0:03:29]} Bb7 {[%emt 0:00:22]} 10. Ba3 {[%emt 0:02:16]} Nbd7 {[%emt 0:00:33]} 11. Bxd6 {[%emt 0:07:29]} Qxd6 {[%emt 0:00:22]} 12. Qb2 {[%emt 0:00:40]} O-O {[%emt 0:01:50]} 13. Rd1 {[%emt 0:04:53]} Ne4 {[%emt 0:04:46]} 14. Nbd2 {[%emt 0:04:12]} Qe7 {[%emt 0:03:53]} 15. Ne5 {[%emt 0:06:11]} Nxe5 {[%emt 0:10:07]} 16. dxe5 {[%emt 0:00:28]} c5 {[%emt 0:02:45]} 17. Qc2 {[%emt 0:22:02]} Rad8 {[%emt 0:19:17]} 18. cxd5 {[%emt 0:19:25]} exd5 {[%emt 0:00:40]} 19. f4 {[%emt 0:02:43]} g5 {[%emt 0:14:11]} 20. e3 {[%emt 0:05:00]} g4 {[%emt 0:14:02]} 21. Nxe4 {[%emt 0:04:52]} fxe4 {[%emt 0:00:29]} 22. Qe2 {[%emt 0:01:34]} Qe6 {[%emt 0:03:33]} 23. Rd2 {[%emt 0:02:14]} Rd7 {[%emt 0:00:35]} 24. Rf1 {[%emt 0:01:00]} Qf5 {[%emt 0:00:25]} 25. Rfd1 {[%emt 0:02:10]} Rfd8 {[%emt 0:02:57]} 26. b4 {[%emt 0:03:45]} d4 {[%emt 0:07:46]} 27. exd4 {[%emt 0:01:20]} cxd4 {[%emt 0:00:08]} 28. Qc4+ {[%emt 0:02:29]} Bd5 {[%emt 0:00:11]} 29. Qc2 {[%emt 0:01:49]} d3 {[%emt 0:05:57]} 30. Qc3 {[%emt 0:00:26]} Bf7 {[%emt 0:02:49]} 31. Re1 {[%emt 0:00:12]} Rd4 {[%emt 0:00:11]} 32. Qc7 {[%emt 0:01:01]} Rc8 {[%emt 0:01:24]} 33. Qxa7 {[%emt 0:00:24]} Rxb4 {[%emt 0:00:40]} 34. Qe7 {[%emt 0:00:31]} Rbc4 {[%emt 0:01:22]} 35. Qa3 {[%emt 0:00:35]} Bg6 {[%emt 0:01:36]} 36. Qb3 {[%emt 0:00:13]} Kh8 {[%emt 0:00:10]} 37. Qxb6 {[%emt 0:00:28]} Qd7 {[%emt 0:00:52]} 38. Qf6+ {[%emt 0:00:44]} Kg8 {[%emt 0:00:05]} 39. e6 {[%emt 0:00:26]} Qa7+ {[%emt 0:00:07]} 40. Kh1 {[%emt 0:00:00]} Rc1 {[%emt 0:00:00]} 41. Rdd1 {[%emt 0:09:27]} d2 {[%emt 0:18:37]} 42. Rf1 {[%emt 0:00:36]} Rxd1 {[%emt 0:05:36]} 43. Rxd1 {[%emt 0:00:13]} Qg7 {[%emt 0:01:06]} 44. Qg5 {[%emt 0:08:00]} e3 {[%emt 0:01:47]} 45. Qb5 {[%emt 0:05:08]} Bc2 {[%emt 0:01:43]} 46. Qa6 {[%emt 0:06:33]} Rc7 {[%emt 0:04:33]} 47. Bd5 {[%emt 0:04:15]} Qe7 {[%emt 0:00:15]} 48. Qa8+ {[%emt 0:00:20]} Kg7 {[%emt 0:00:06]} 0-1

[Event "USA-ch Junior Girls 2019"]
[Site "Saint Louis"]
[Date "2019.07.12"]
[Round "2.2"]
[White "Nguyen, Emily"]
[Black "Samadashvili, Martha"]
[Result "1-0"]
[ECO "D38"]
[WhiteElo "2102"]
[BlackElo "2124"]
[Annotator "NA"]
[PlyCount "95"]
[EventDate "2019.07.09"]
[EventType "tourn"]
[EventCountry "USA"]
[SourceTitle "playchess.com"]
[Source "ChessBase"]
[SourceQuality "1"]
[TimeControl "40/5400+30:1800+30"]

1. d4 {[%emt 0:00:00]} Nf6 {[%emt 0:00:00]} 2. Nf3 {[%emt 0:00:00]} d5 {[%emt 0:00:00]} 3. c4 {[%emt 0:00:00]} e6 {[%emt 0:00:00]} 4. Nc3 {[%emt 0:00:00]} Bb4 {[%emt 0:00:00]} 5. cxd5 {[%emt 0:00:00]} exd5 {[%emt 0:00:05]} 6. Bf4 {[%emt 0:00:00]} O-O {[%emt 0:02:58]} 7. Rc1 {[%emt 0:00:00]} c6 {[%emt 0:03:16]} 8. e3 {[%emt 0:00:11]} Re8 {[%emt 0:05:45]} 9. h3 {[%emt 0:04:03]} Bf5 {[%emt 0:03:29]} 10. Be2 {[%emt 0:00:40]} h6 {[%emt 0:02:16]} 11. O-O {[%emt 0:01:39]} Bf8 {[%emt 0:02:58]} 12. Qa4 {[%emt 0:06:29]} Nbd7 {[%emt 0:02:44]} 13. b4 {[%emt 0:03:56]} a5 {[%emt 0:05:48]} 14. b5 {[%emt 0:01:01]} c5 {[%emt 0:12:46]} 15. dxc5 {[%emt 0:03:45]} Nxc5 {[%emt 0:03:47]} 16. Qd1 {[%emt 0:00:31]} Rc8 {[%emt 0:08:13]} 17. Na4 {[%emt 0:10:42]} Nfe4 {[%emt 0:09:10]} 18. Nd4 {[%emt 0:08:19]} Bd7 {[%emt 0:04:24]} 19. Nxc5 {[%emt 0:05:38]} Bxc5 {[%emt 0:08:30]} 20. Nb3 {[%emt 0:19:26]} Ba3 {[%emt 0:02:11]} 21. Rxc8 {[%emt 0:01:13]} Bxc8 {[%emt 0:03:56]} 22. Qd4 {[%emt 0:01:07]} Be6 {[%emt 0:10:32]} 23. Bf3 {[%emt 0:09:12]} Qa8 {[%emt 0:02:51]} 24. Nd2 {[%emt 0:03:23]} Nxd2 {[%emt 0:01:24]} 25. Qxd2 {[%emt 0:00:05]} b6 {[%emt 0:02:36]} 26. Rd1 {[%emt 0:02:00]} Rc8 {[%emt 0:01:29]} 27. Qd3 {[%emt 0:02:03]} Bb4 {[%emt 0:00:28]} 28. a4 {[%emt 0:06:33]} Qb7 {[%emt 0:00:40]} 29. Be5 {[%emt 0:02:35]} Rd8 {[%emt 0:00:51]} 30. e4 {[%emt 0:01:50]} d4 {[%emt 0:00:15]} 31. Bxd4 {[%emt 0:01:27]} Bc5 {[%emt 0:00:28]} 32. Qc3 {[%emt 0:01:26]} Bxd4 {[%emt 0:00:06]} 33. Rxd4 {[%emt 0:00:07]} Rc8 {[%emt 0:00:36]} 34. Qd2 {[%emt 0:00:10]} Qc7 {[%emt 0:00:18]} 35. Rd6 {[%emt 0:01:23]} Qc5 {[%emt 0:00:25]} 36. e5 {[%emt 0:02:33]} Qxe5 {[%emt 0:01:37]} 37. Rxb6 {[%emt 0:00:07]} Qa1+ {[%emt 0:00:17]} 38. Kh2 {[%emt 0:00:03]} Qxa4 {[%emt 0:00:35]} 39. Bc6 {[%emt 0:00:44]} Qc4 {[%emt 0:00:43]} 40. Ra6 {[%emt 0:00:00]} a4 {[%emt 0:00:00]} 41. Qd6 $16 {[%emt 0:06:10]} Kh7 {[%emt 0:09:19]} 42. Bb7 {[%emt 0:02:06]} Rc5 {[%emt 0:04:54]} 43. Be4+ {[%emt 0:07:06]} Bf5 {[%emt 0:12:45]} 44. Rc6 {[%emt 0:01:04]} Rxc6 {[%emt 0:00:49]} 45. Bxf5+ {[%emt 0:00:05]} g6 {[%emt 0:00:03]} 46. Bxg6+ {[%emt 0:01:11]} fxg6 {[%emt 0:00:03]} 47. bxc6 {[%emt 0:00:04]} a3 {[%emt 0:01:54]} 48. c7 {[%emt 0:00:16]} 1-0

[Event "USA-ch Junior Girls 2019"]
[Site "Saint Louis"]
[Date "2019.07.12"]
[Round "2.3"]
[White "Zilajeva, Veronika"]
[Black "Wu, Rochelle"]
[Result "0-1"]
[ECO "A50"]
[WhiteElo "1855"]
[BlackElo "2085"]
[Annotator "NA RC"]
[PlyCount "86"]
[EventDate "2019.07.09"]
[EventType "tourn"]
[EventCountry "USA"]
[SourceTitle "playchess.com"]
[Source "ChessBase"]
[SourceQuality "1"]
[TimeControl "40/5400+30:1800+30"]

1. d4 {[%emt 0:00:00]} Nf6 {[%emt 0:00:00]} 2. c4 {[%emt 0:00:00]} b6 {[%emt 0:00:00]} 3. Nc3 {[%emt 0:00:19]} Bb7 {[%emt 0:00:00]} 4. e3 {[%emt 0:04:01]} e6 {[%emt 0:00:25]} 5. Nf3 {[%emt 0:00:33]} Bb4 {[%emt 0:00:32]} 6. Bd3 {[%emt 0:02:58]} Ne4 {[%emt 0:04:17]} 7. Qc2 {[%emt 0:02:17]} f5 {[%emt 0:02:38]} 8. Bd2 {[%emt 0:12:03]} Bxc3 {[%emt 0:03:00]} 9. Bxc3 {[%emt 0:00:36]} O-O {[%emt 0:00:29]} 10. O-O-O {[%emt 0:07:03]} Qe7 {[%emt 0:03:02]} 11. Ne1 {[%emt 0:04:50]} d5 {[%emt 0:12:41]} 12. f3 {[%emt 0:02:59]} Nf6 {[%emt 0:03:57]} 13. h3 {[%emt 0:10:12]} dxc4 {[%emt 0:04:35]} 14. Bxc4 {[%emt 0:00:32]} Bd5 {[%emt 0:00:03]} 15. Qb3 {[%emt 0:10:32]} c5 {[%emt 0:02:58]} 16. Nc2 {[%emt 0:01:34]} Nbd7 {[%emt 0:11:07]} 17. e4 {[%emt 0:10:46]} fxe4 {[%emt 0:00:29]} 18. fxe4 {[%emt 0:01:25]} Nxe4 {[%emt 0:01:57]} 19. Bxd5 {[%emt 0:00:52]} Qg5+ {[%emt 0:00:06]} 20. Kb1 {[%emt 0:00:13]} Qxd5 {[%emt 0:02:32]} 21. Rhe1 {[%emt 0:03:39]} c4 {[%emt 0:03:11]} 22. Qa4 {[%emt 0:01:06]} Nxc3+ {[%emt 0:01:06]} 23. bxc3 {[%emt 0:00:10]} b5 {[%emt 0:00:50]} 24. Qa3 {[%emt 0:00:28]} a5 {[%emt 0:07:34]} 25. Qe7 {[%emt 0:01:43]} Rfe8 {[%emt 0:00:58]} 26. Qh4 {[%emt 0:00:39]} b4 {[%emt 0:01:04]} 27. Qe4 {[%emt 0:03:18]} Qb5 {[%emt 0:01:07]} 28. Ka1 {[%emt 0:01:32]} Qa4 {[%emt 0:03:00]} 29. Ne3 {[%emt 0:01:14]} b3 {[%emt 0:01:00]} 30. Rd2 {[%emt 0:00:16]} Rab8 {[%emt 0:01:30]} 31. Ng4 {[%emt 0:02:50]} Qa3 {[%emt 0:04:23]} 32. Qe3 {[%emt 0:01:48]} Nb6 {[%emt 0:09:04]} 33. Nh6+ gxh6 {[%emt 0:01:12]} 34. Qg3+ {[%emt 0:02:00]} Kf7 {[%emt 0:02:02]} 35. Rf2+ {[%emt 0:03:42]} Ke7 {[%emt 0:00:10]} 36. Qc7+ {[%emt 0:02:01]} Nd7 {[%emt 0:00:04]} 37. d5 {[%emt 0:00:42]} Rb6 {[%emt 0:02:26]} 38. Ref1 {[%emt 0:01:37]} Rf8 {[%emt 0:01:04]} 39. Rf7+ {[%emt 0:03:39]} Rxf7 {[%emt 0:00:07]} 40. Rxf7+ {[%emt 0:00:00]} Kxf7 {[%emt 0:00:00]} 41. Qxd7+ {[%emt 0:00:31]} Kf6 {[%emt 0:01:19]} 42. Qd8+ {[%emt 0:00:27]} Kf5 {[%emt 0:00:04]} 43. g4+ {[%emt 0:00:49]} Ke4 {[%emt 0:00:05]} 0-1